bitfinex/quotes_BTCUSD_20250414
["timestamp","ask_amount","ask_price","bid_price","bid_amount"]
[1744606587467,1.08373365,84918.0,84917.0,0.00046265]
[1744606591083,1.10273934,84918.0,84917.0,0.00046265]
[1744606591284,1.10273934,84918.0,84917.0,6.5e-07]
[1744606591633,1.08373365,84918.0,84917.0,6.5e-07]
[1744606602271,0.74373365,84918.0,84917.0,0.04580065]
[1744606602477,1.08373365,84918.0,84917.0,0.04580065]
[1744606605684,1.22473365,84918.0,84917.0,0.04580065]
[1744606617034,1.08373365,84918.0,84917.0,0.04580065]
[1744606617210,1.22473365,84918.0,84917.0,0.04580065]
[1744606617712,1.22473365,84918.0,84917.0,6.5e-07]
[1744606619717,2.43721365,84918.0,84917.0,6.5e-07]
[1744606632927,2.29621365,84918.0,84917.0,6.5e-07]
[1744606633131,2.43709365,84918.0,84917.0,6.5e-07]
[1744606644247,2.43709365,84918.0,84917.0,0.04540065]
[1744606648308,2.29621365,84918.0,84917.0,0.04540065]
[1744606648532,2.16349653,84918.0,84917.0,0.04540065]
[1744606648736,2.16349653,84918.0,84917.0,0.09080065]
[1744606648737,0.00609953,84918.0,84917.0,0.09080065]
[1744606648911,0.00609953,84918.0,84917.0,0.09315573]
[1744606649117,0.05021812,84923.0,84920.0,0.011775]
[1744606649253,0.05021812,84923.0,84921.0,0.31160636]
[1744606649463,0.05021812,84923.0,84922.0,0.0933]
[1744606649941,0.05021812,84923.0,84922.0,0.10393882]
[1744606650320,0.00341812,84923.0,84922.0,0.22478036]
[1744606650521,0.14088,84936.0,84935.0,0.281679]
[1744606650926,0.14088,84936.0,84935.0,0.29225508]
[1744606651728,0.14088,84936.0,84935.0,0.29325508]
[1744606652137,0.14088,84936.0,84935.0,0.29625508]
[1744606652575,0.14088,84936.0,84935.0,0.10787608]
[1744606653177,0.14088,84936.0,84935.0,0.0973]
[1744606659155,0.14088,84936.0,84935.0,0.285679]
[1744606659357,0.14088,84936.0,84935.0,0.0973]
[1744606660808,0.329257,84936.0,84935.0,0.0973]
[1744606661010,0.14088,84936.0,84935.0,0.0973]
[1744606661204,0.14088,84936.0,84935.0,0.1076505]
[1744606661914,0.14088,84936.0,84935.0,0.2960295]
[1744606663063,0.14088,84936.0,84935.0,0.2930295]
[1744606663238,0.14088,84936.0,84935.0,0.2980295]
[1744606663656,0.011772,84946.0,84943.0,0.200133]
[1744606663800,0.011772,84946.0,84944.0,0.05095423]
[1744606663994,0.011772,84946.0,84945.0,0.01124631]
[1744606664299,0.011772,84946.0,84944.0,0.05095423]
[1744606664499,0.011772,84946.0,84945.0,0.01124911]
[1744606664953,0.01223281,84946.0,84944.0,0.0486]
[1744606665156,0.01223281,84946.0,84945.0,0.0112519]
[1744606665564,0.01223281,84946.0,84944.0,0.0486]
[1744606665706,0.01223281,84946.0,84945.0,0.0112547]
[1744606666108,0.01223281,84946.0,84944.0,0.0486]
[1744606666283,0.01223281,84946.0,84945.0,0.0112547]
[1744606666504,0.01223281,84946.0,84945.0,0.0122547]
[1744606666646,0.01223281,84946.0,84945.0,0.001]
[1744606666847,0.01223281,84946.0,84945.0,0.0122547]
[1744606667293,0.00046081,84946.0,84945.0,0.0122547]
[1744606667854,0.00046081,84946.0,84945.0,0.2016117]
[1744606675294,0.00046081,84946.0,84945.0,0.25016593]
[1744606676032,0.00046081,84946.0,84945.0,0.2478117]
[1744606676235,0.00046081,84946.0,84945.0,0.2458117]
[1744606676441,0.00046081,84946.0,84945.0,0.0614547]
[1744606676979,0.00046081,84946.0,84945.0,0.0634547]
[1744606681584,0.00046081,84946.0,84945.0,0.2518117]
[1744606695378,0.00046081,84946.0,84945.0,0.2056117]
[1744606701622,0.00046081,84946.0,84945.0,0.0172547]
[1744606705419,0.00046081,84946.0,84945.0,0.30676593]
[1744606705743,0.00046081,84946.0,84945.0,0.42525324]
[1744606706301,0.00046081,84946.0,84945.0,0.42125324]
[1744606706746,0.00046081,84946.0,84945.0,0.42625324]
[1744606706886,0.00046081,84946.0,84945.0,0.42925324]
[1744606710000,0.00046081,84946.0,84945.0,0.0212547]
[1744606710408,0.14102081,84946.0,84945.0,0.0212547]
[1744606710613,0.18652081,84946.0,84945.0,0.01]
[1744606710997,0.18652081,84946.0,84945.0,0.007]
[1744606711171,0.011773,84935.0,84925.0,0.060675]
[1744606711511,0.188381,84934.0,84933.0,0.01125775]
[1744606711990,0.188381,84934.0,84926.0,0.011774]
[1744606713135,0.188381,84934.0,84927.0,0.011774]
[1744606713276,0.188381,84934.0,84933.0,0.01125495]
[1744606714624,0.21040756,84934.0,84933.0,0.01725495]
[1744606715875,0.21040756,84934.0,84933.0,0.01125495]
[1744606716075,0.21040756,84934.0,84932.0,0.004]
[1744606716284,0.21040756,84934.0,84933.0,0.004]
[1744606716484,0.188381,84934.0,84933.0,0.01525495]
[1744606716619,0.188381,84934.0,84933.0,0.006]
[1744606716967,0.188381,84934.0,84933.0,0.002]
[1744606717768,0.21039727,84934.0,84933.0,0.002]
[1744606717969,0.21039727,84934.0,84933.0,0.006]
[1744606718133,0.188381,84934.0,84933.0,0.004]
[1744606718475,0.188381,84934.0,84933.0,0.01525775]
[1744606720250,0.188381,84934.0,84933.0,0.01725775]
[1744606724091,0.188381,84934.0,84933.0,0.006]
[1744606724500,0.188381,84934.0,84933.0,0.01729635]
[1744606726277,0.6503935,84934.0,84933.0,0.01729635]
[1744606726449,0.76682918,84934.0,84933.0,0.01729635]
[1744606726659,0.237525,84914.0,84909.0,0.0008454]
[1744606726882,0.377965,84914.0,84909.0,0.0008454]
[1744606727204,0.39997164,84914.0,84909.0,0.0008454]
[1744606727639,0.16244664,84914.0,84911.0,0.011777]
[1744606727846,0.16244664,84914.0,84911.0,0.057977]
[1744606728071,0.16290716,84914.0,84913.0,0.0018458]
[1744606728462,0.16290716,84914.0,84913.0,0.01138652]
[1744606728691,0.16290716,84914.0,84913.0,0.0018458]
[1744606729002,0.14090052,84914.0,84913.0,0.0018458]
[1744606729203,0.48090052,84914.0,84913.0,0.01140051]
[1744606729339,0.48090052,84914.0,84913.0,0.0018458]
[1744606730263,0.49276061,84914.0,84913.0,0.0018458]
[1744606731931,0.61360215,84914.0,84913.0,0.0018458]
[1744606732891,1.07850215,84914.0,84913.0,0.0018458]
[1744606733735,1.07850215,84914.0,84913.0,0.0008458]
[1744606734093,1.08050215,84914.0,84913.0,0.0008458]
[1744606734768,0.18847,84894.0,84893.0,0.0008454]
[1744606734946,0.32895,84894.0,84893.0,0.0008454]
[1744606736247,0.66895,84894.0,84893.0,0.0008454]
[1744606736441,1.08545,84894.0,84893.0,0.0008454]
[1744606736642,1.29989154,84894.0,84893.0,0.0008454]
[1744606736895,1.30189154,84894.0,84893.0,0.0008454]
[1744606737643,1.29989154,84894.0,84893.0,0.0008454]
[1744606737848,1.30289154,84894.0,84893.0,0.0008454]
[1744606738044,1.4324189,84894.0,84893.0,0.0008454]
[1744606738252,1.2929389,84894.0,84893.0,0.0008454]
[1744606738448,1.4334589,84894.0,84893.0,0.0008454]
[1744606738678,1.4324589,84894.0,84893.0,0.0008454]
[1744606739044,1.4344589,84894.0,84893.0,0.0008454]
[1744606739489,1.4324589,84894.0,84893.0,0.0008454]
[1744606739704,1.4294589,84894.0,84893.0,0.0008454]
[1744606740039,1.4334589,84894.0,84893.0,0.0008454]
[1744606740272,1.45136009,84894.0,84893.0,0.0008454]
[1744606740476,1.33063161,84894.0,84893.0,0.0008454]
[1744606740675,1.33663161,84894.0,84893.0,0.0008454]
[1744606741560,1.31473042,84894.0,84893.0,0.0008454]
[1744606741947,1.41473042,84894.0,84893.0,0.0008454]
[1744606742119,1.41473042,84894.0,84893.0,4e-07]
[1744606742324,0.628474,84892.0,84891.0,4e-07]
[1744606742532,0.628474,84892.0,84879.0,0.0008454]
[1744606742533,0.528492,84884.0,84883.0,6e-07]
[1744606742763,1.90705354,84884.0,84883.0,6e-07]
[1744606743090,2.00237354,84884.0,84883.0,6e-07]
[1744606743508,2.02424859,84884.0,84883.0,6e-07]
[1744606743904,2.02429462,84884.0,84883.0,0.0010006]
[1744606744132,2.03029462,84884.0,84883.0,0.0010006]
[1744606744334,2.02429462,84884.0,84883.0,6e-07]
[1744606744750,2.02929462,84884.0,84883.0,6e-07]
[1744606745131,2.03129462,84884.0,84883.0,6e-07]
[1744606747938,2.44779462,84884.0,84883.0,6e-07]
[1744606748376,2.47571113,84884.0,84883.0,6e-07]
[1744606749324,2.44779462,84884.0,84883.0,6e-07]
[1744606749738,2.54129462,84884.0,84883.0,6e-07]
[1744606751852,2.40077462,84884.0,84883.0,6e-07]
[1744606752049,2.54125462,84884.0,84883.0,6e-07]
[1744606752364,2.64125462,84884.0,84883.0,6e-07]
[1744606752564,2.7619831,84884.0,84883.0,6e-07]
[1744606753459,0.1,84880.0,84879.0,1e-06]
[1744606753670,0.1,84880.0,84866.0,0.0008454]
[1744606753671,0.62853,84867.0,84866.0,0.0008454]
[1744606754011,0.93665154,84867.0,84866.0,0.0008454]
[1744606754228,1.07134838,84867.0,84866.0,4e-07]
[1744606754450,1.01976744,84867.0,84866.0,4e-07]
[1744606754984,1.02576744,84867.0,84866.0,0.0010004]
[1744606755220,1.03672255,84867.0,84866.0,4e-07]
[1744606756394,0.54307985,84863.0,84862.0,0.0008458]
[1744606756605,1.08042139,84863.0,84862.0,0.0008458]
[1744606756818,1.08945268,84863.0,84862.0,0.0008458]
[1744606756940,1.12228284,84863.0,84862.0,0.0008458]
[1744606757357,1.10774199,84863.0,84862.0,0.0008458]
[1744606757802,1.11774199,84863.0,84862.0,0.0018458]
[1744606758000,1.12950094,84863.0,84862.0,0.0018458]
[1744606759716,1.27002094,84863.0,84862.0,0.0018458]
[1744606761029,1.39074942,84863.0,84862.0,0.0018458]
[1744606761370,1.27002094,84863.0,84862.0,0.0018458]
[1744606762404,2.48322094,84863.0,84862.0,0.0018458]
[1744606764412,2.47226583,84863.0,84862.0,0.0018458]
[1744606766956,2.51776583,84863.0,84862.0,0.0018458]
[1744606767613,2.5287566,84863.0,84862.0,0.0018458]
[1744606767809,2.59890504,84863.0,84862.0,0.0018458]
[1744606768387,2.58791427,84863.0,84862.0,0.0018458]
[1744606768595,2.60245512,84863.0,84862.0,8e-07]
[1744606769593,2.53230668,84863.0,84862.0,8e-07]
[1744606772540,2.54330221,84863.0,84862.0,8e-07]
[1744606774488,0.011785,84852.0,84849.0,0.0008458]
[1744606774627,0.34,84850.0,84849.0,0.0008458]
[1744606774976,0.46084154,84850.0,84849.0,0.0008458]
[1744606775179,0.48271659,84850.0,84849.0,0.0008458]
[1744606775791,0.48471659,84850.0,84849.0,0.00098432]
[1744606775994,0.48871659,84850.0,84849.0,0.00198432]
[1744606776204,0.49971212,84850.0,84849.0,0.00198432]
[1744606779019,0.47783707,84850.0,84849.0,0.00198432]
[1744606780079,0.61835707,84850.0,84849.0,0.09288432]
[1744606780291,1.03285627,84850.0,84849.0,0.09288432]
[1744606780780,1.05489861,84850.0,84849.0,0.09288432]
[1744606781312,0.93405707,84850.0,84849.0,0.09288432]
[1744606784914,0.91201473,84850.0,84849.0,0.09288432]
[1744606786839,0.93408545,84850.0,84849.0,0.09288432]
[1744606788250,0.92308992,84850.0,84849.0,0.09288432]
[1744606789614,0.92308992,84850.0,84849.0,0.04768432]
[1744606790689,2.13644992,84850.0,84849.0,0.04768432]
[1744606793922,2.13644992,84850.0,84849.0,0.00198432]
[1744606798056,2.13644992,84850.0,84849.0,0.04588432]
[1744606798871,2.1143792,84850.0,84849.0,0.04588432]
[1744606800273,0.011786,84841.0,84838.0,0.0475454]
[1744606800521,0.011786,84841.0,84838.0,0.04768402]
[1744606801126,0.011786,84841.0,84839.0,0.0489]
[1744606801647,0.201376,84841.0,84839.0,0.0489]
[1744606801853,0.14048,84840.0,84839.0,0.0489]
[1744606804461,0.14148,84840.0,84839.0,0.237492]
[1744606805331,0.14048,84840.0,84839.0,0.237492]
[1744606806135,0.14048,84840.0,84839.0,0.284192]
[1744606807823,1.21336,84850.0,84848.0,0.0479]
[1744606808062,0.14048,84849.0,84848.0,0.0479]
[1744606808851,0.14048,84849.0,84848.0,0.236472]
[1744606809161,0.14348,84849.0,84848.0,0.236472]
[1744606810091,0.14334479,84849.0,84848.0,0.236472]
[1744606810288,0.003,84849.0,84848.0,0.283772]
[1744606810493,0.003,84849.0,84848.0,0.28324991]
[1744606810494,0.14348,84849.0,84848.0,0.28324991]
[1744606811079,0.14548,84849.0,84848.0,0.28324991]
[1744606811491,0.14248,84849.0,84848.0,0.28324991]
[1744606811941,0.14248,84849.0,84848.0,0.09567791]
[1744606812141,0.14248,84849.0,84848.0,0.09467791]
[1744606812418,0.14048,84849.0,84848.0,0.09767791]
[1744606812639,0.14048,84849.0,84848.0,0.0503]
[1744606812820,0.14048,84849.0,84848.0,0.0513]
[1744606813032,0.1625332,84849.0,84848.0,0.0513]
[1744606813292,0.1625332,84849.0,84848.0,0.0503]
[1744606813666,0.1625332,84849.0,84848.0,0.0523]
[1744606814191,0.1625332,84849.0,84848.0,0.0473]
[1744606815492,0.16228875,84849.0,84848.0,0.0473]
[1744606815680,0.16208527,84849.0,84846.0,0.011786]
[1744606815992,0.16188179,84849.0,84846.0,0.011786]
[1744606816350,0.16188179,84849.0,84840.0,0.235888]
[1744606816351,0.200369,84843.0,84840.0,0.0473]
[1744606816549,0.011786,84843.0,84840.0,0.0473]
[1744606816750,0.0220532,84842.0,84840.0,0.0473]
[1744606816961,0.0220532,84841.0,84840.0,0.0473]
[1744606817156,0.02184972,84841.0,84840.0,0.0473]
[1744606817544,0.02184972,84841.0,84840.0,0.0575294]
[1744606817919,0.02184972,84841.0,84840.0,0.0585294]
[1744606818612,0.02184972,84841.0,84840.0,0.0575294]
[1744606818823,0.02184972,84841.0,84840.0,0.0595294]
[1744606819176,0.20002995,84843.0,84840.0,0.0595294]
[1744606819177,0.07187967,84843.0,84840.0,0.0575294]
[1744606819607,0.07153962,84843.0,84840.0,0.0575294]
[1744606819807,0.08332562,84843.0,84840.0,0.0575294]
[1744606820247,0.08332562,84843.0,84840.0,0.0102294]
[1744606820519,0.08332562,84843.0,84838.0,0.01277102]
[1744606820761,0.011786,84842.0,84838.0,0.01277102]
[1744606820962,0.011786,84842.0,84839.0,0.01023562]
[1744606821369,0.1404,84841.0,84838.0,0.01277102]
[1744606821738,0.1404,84841.0,84839.0,0.01023001]
[1744606821934,0.13903565,84841.0,84839.0,0.01023001]
[1744606822170,0.011786,84842.0,84838.0,0.01377102]
[1744606822360,0.1404,84840.0,84838.0,0.01377102]
[1744606822578,0.13971843,84840.0,84838.0,0.01377102]
[1744606823131,0.13924175,84840.0,84839.0,0.189592]
[1744606823338,0.1390041,84840.0,84839.0,0.188592]
[1744606823994,0.1390041,84840.0,84839.0,0.284092]
[1744606824181,0.1390041,84840.0,84839.0,0.285092]
[1744606825197,0.13894401,84840.0,84839.0,0.285092]
[1744606825776,0.13894401,84840.0,84839.0,0.286092]
[1744606827163,0.13894401,84840.0,84839.0,0.29633918]
[1744606828208,0.13894401,84840.0,84839.0,0.24843918]
[1744606828407,0.13894401,84840.0,84839.0,0.2479138]
[1744606829435,0.13860392,84840.0,84839.0,0.05984718]
[1744606829608,0.13860392,84840.0,84839.0,0.24843918]
[1744606830407,0.13860392,84840.0,84839.0,0.20083918]
[1744606831276,0.13853701,84840.0,84839.0,0.20083918]
[1744606831715,0.13849058,84840.0,84839.0,0.20083918]
[1744606833924,0.13838952,84840.0,84839.0,0.20083918]
[1744606839332,0.13838952,84840.0,84839.0,0.29523918]
[1744606840474,0.13838952,84840.0,84839.0,0.29573918]
[1744606844222,0.16046409,84840.0,84839.0,0.29573918]
[1744606846429,0.13838952,84840.0,84839.0,0.29573918]
[1744606846730,0.14942869,84840.0,84839.0,0.29573918]
[1744606847308,0.17150704,84840.0,84839.0,0.29573918]
[1744606848673,0.17150704,84840.0,84839.0,0.20133918]
[1744606851012,0.14942869,84840.0,84839.0,0.20133918]
[1744606851786,0.14942869,84840.0,84839.0,0.1982023]
[1744606852188,0.13838952,84840.0,84839.0,0.1982023]
[1744606855076,0.011785,84847.0,84844.0,0.011786]
[1744606855227,0.14032,84846.0,84844.0,0.011786]
[1744606855433,0.14032,84846.0,84845.0,0.00712712]
[1744606855814,0.14032,84846.0,84844.0,0.011786]
[1744606856261,0.14032,84846.0,84845.0,0.00591969]
[1744606856442,0.14132,84846.0,84844.0,0.011786]
[1744606856648,0.14132,84846.0,84845.0,0.00591969]
[1744606856999,0.14132,84846.0,84844.0,0.011786]
[1744606857000,0.14132,84846.0,84844.0,0.200365]
[1744606857268,0.14132,84846.0,84845.0,0.00592249]
[1744606857468,0.14132,84846.0,84844.0,0.200365]
[1744606857672,0.14132,84846.0,84845.0,0.00591969]
[1744606857831,0.14032,84846.0,84844.0,0.200365]
[1744606858031,0.14032,84846.0,84845.0,0.00591969]
[1744606858231,0.14132,84846.0,84844.0,0.200365]
[1744606858433,0.14132,84846.0,84845.0,0.00591969]
[1744606858842,0.14132,84846.0,84844.0,0.200365]
[1744606859049,0.14132,84846.0,84845.0,0.00591969]
[1744606859253,0.14132,84846.0,84844.0,0.200365]
[1744606859458,0.14132,84846.0,84845.0,0.00492875]
[1744606859675,0.14232,84846.0,84844.0,0.200365]
[1744606859847,0.14232,84846.0,84845.0,0.00492875]
[1744606860048,0.14232,84846.0,84844.0,0.200365]
[1744606860289,0.14132,84846.0,84845.0,0.00492875]
[1744606860538,0.153106,84846.0,84841.0,0.200373]
[1744606860705,0.153106,84846.0,84843.0,0.011786]
[1744606861019,0.153106,84846.0,84844.0,0.00492888]
[1744606861573,0.152106,84846.0,84844.0,0.00492888]
[1744606861772,0.153106,84846.0,84844.0,0.00492888]
[1744606862489,0.341683,84846.0,84844.0,0.00492888]
[1744606862692,0.341683,84846.0,84842.0,0.011786]
[1744606862897,0.341683,84846.0,84843.0,0.00493096]
[1744606863356,0.188581,84844.0,84843.0,0.00493096]
[1744606863694,0.200372,84842.0,84839.0,0.0005]
[1744606863895,0.200372,84842.0,84840.0,0.00492376]
[1744606864105,0.18859,84840.0,84839.0,0.0005]
[1744606864866,0.18859,84840.0,84839.0,0.0015]
[1744606865609,0.30943154,84840.0,84839.0,0.0025]
[1744606866029,0.30943154,84840.0,84839.0,0.0015]
[1744606866811,0.31043154,84840.0,84839.0,0.0015]
[1744606866936,0.31043154,84840.0,84839.0,0.0005]
[1744606867132,0.40093154,84840.0,84839.0,0.0005]
[1744606870228,0.74093154,84840.0,84839.0,0.0005]
[1744606871105,0.86166002,84840.0,84839.0,0.0005]
[1744606871296,0.74093154,84840.0,84839.0,0.0005]
[1744606871920,0.73993154,84840.0,84839.0,0.0005]
[1744606872447,0.74293154,84840.0,84839.0,0.0005]
[1744606872649,1.15443074,84840.0,84839.0,0.0005]
[1744606872824,1.15843074,84840.0,84839.0,0.0005]
[1744606873041,1.15943074,84840.0,84839.0,0.0005]
[1744606873438,1.15843074,84840.0,84839.0,0.0005]
[1744606873964,1.16043074,84840.0,84839.0,0.0005]
[1744606874288,0.39964085,84839.0,84838.0,0.00013862]
[1744606874433,0.56588239,84839.0,84838.0,2e-08]
[1744606875217,0.55134154,84839.0,84838.0,2e-08]
[1744606875864,0.55734154,84839.0,84838.0,0.00100002]
[1744606876082,0.55734154,84839.0,84838.0,2e-08]
[1744606876425,0.56834154,84839.0,84838.0,0.00100002]
[1744606878105,0.56827463,84839.0,84838.0,0.00100002]
[1744606879696,0.66521471,84839.0,84838.0,0.00100002]
[1744606879899,1.07971391,84839.0,84838.0,0.00100002]
[1744606880076,0.99731468,84839.0,84838.0,0.00100002]
[1744606880456,0.188608,84832.0,84831.0,0.002]
[1744606880660,0.81165003,84832.0,84831.0,0.002]
[1744606881125,0.85925003,84832.0,84831.0,0.002]
[1744606881935,0.87025003,84832.0,84831.0,0.003]
[1744606882262,0.86225003,84832.0,84831.0,0.002]
[1744606882414,0.97997851,84832.0,84831.0,0.002]
[1744606882613,0.99397851,84832.0,84831.0,0.003]
[1744606884612,0.87325003,84832.0,84831.0,0.003]
[1744606884816,0.77325003,84832.0,84831.0,0.003]
[1744606885027,0.87325003,84832.0,84831.0,0.003]
[1744606885813,1.28774923,84832.0,84831.0,0.003]
[1744606885970,1.28774923,84832.0,84815.0,0.000846]
[1744606886179,0.79705554,84829.0,84828.0,8e-07]
[1744606886385,0.84465554,84829.0,84828.0,8e-07]
[1744606888262,0.84465554,84829.0,84815.0,0.000846]
[1744606888263,0.35454085,84816.0,84815.0,0.000846]
[1744606888434,2.33916079,84816.0,84815.0,0.000846]
[1744606888635,0.528659,84809.0,84808.0,0.0008452]
[1744606888837,0.64950054,84809.0,84808.0,0.0008452]
[1744606890848,0.65150054,84809.0,84808.0,0.0008452]
[1744606891051,0.65550054,84809.0,84808.0,0.0008452]
[1744606891272,0.65350054,84809.0,84808.0,0.0008452]
[1744606891494,0.79682054,84809.0,84808.0,0.0008452]
[1744606891696,1.21131894,84809.0,84808.0,0.0008452]
[1744606894056,1.07099894,84809.0,84808.0,0.0008452]
[1744606894259,0.7504774,84809.0,84808.0,0.0008452]
[1744606894452,0.9501574,84809.0,84808.0,0.0008452]
[1744606894671,1.0904774,84809.0,84808.0,0.0008452]
[1744606895244,1.0834774,84809.0,84808.0,0.0008452]
[1744606895644,1.0844774,84809.0,84808.0,0.0018452]
[1744606898287,1.0834774,84809.0,84808.0,0.0008452]
[1744606898646,1.0844774,84809.0,84808.0,0.0008452]
[1744606899713,1.0854774,84809.0,84808.0,0.0008452]
[1744606900193,1.20631894,84809.0,84808.0,0.0008452]
[1744606902400,1.25331894,84809.0,84808.0,0.0008452]
[1744606904490,1.25231894,84809.0,84808.0,0.0008452]
[1744606904654,1.25531894,84809.0,84808.0,0.0008452]
[1744606905071,1.25131894,84809.0,84808.0,0.0008452]
[1744606905277,1.25631894,84809.0,84808.0,0.0008452]
[1744606905794,1.26231894,84809.0,84808.0,0.0008452]
[1744606906139,1.26431894,84809.0,84808.0,0.0008452]
[1744606906736,1.21531894,84809.0,84808.0,0.0008452]
[1744606906911,1.07899894,84809.0,84808.0,0.0008452]
[1744606907117,1.21923894,84809.0,84808.0,0.0008452]
[1744606907490,1.23075947,84809.0,84808.0,0.0008452]
[1744606920884,0.89075947,84809.0,84808.0,0.0008452]
[1744606921085,1.23075947,84809.0,84808.0,0.0008452]
[1744606922500,1.10991793,84809.0,84808.0,0.0008452]
[1744606923007,0.96967793,84809.0,84808.0,0.0008452]
[1744606923362,1.10991793,84809.0,84808.0,0.0008452]
[1744606923580,0.96967793,84809.0,84808.0,0.0008452]
[1744606923782,1.10991793,84809.0,84808.0,0.0008452]
[1744606926339,1.35148795,84809.0,84808.0,0.0008452]
[1744606926539,1.23075947,84809.0,84808.0,0.0008452]
[1744606929793,2.44479947,84809.0,84808.0,0.0008452]
[1744606936585,2.30455947,84809.0,84808.0,0.0008452]
[1744606936797,2.44479947,84809.0,84808.0,0.0008452]
[1744606937142,2.30455947,84809.0,84808.0,0.0008452]
[1744606937440,2.44471947,84809.0,84808.0,0.0008452]
[1744606944040,2.30455947,84809.0,84808.0,0.0008452]
[1744606944248,2.44471947,84809.0,84808.0,0.0008452]
[1744606948547,2.44071947,84809.0,84808.0,0.0008452]
[1744606949247,2.42971947,84809.0,84808.0,0.0008452]
[1744606949443,2.43471947,84809.0,84808.0,0.0008452]
[1744606950193,2.43771947,84809.0,84808.0,0.0008452]
[1744606950396,2.55844795,84809.0,84808.0,0.0008452]
[1744606951615,2.43771947,84809.0,84808.0,0.0008452]
[1744606973578,2.29755947,84809.0,84808.0,0.0008452]
[1744606973756,2.43763947,84809.0,84808.0,0.0008452]
[1744606975503,2.17671793,84809.0,84808.0,0.0008452]
[1744606975705,1.6365384,84809.0,84808.0,0.0496452]
[1744606975908,1.7766184,84809.0,84808.0,0.0496452]
[1744606976272,1.7686184,84809.0,84808.0,0.0496452]
[1744606976475,1.9572774,84809.0,84808.0,0.0496452]
[1744606976681,1.9582774,84809.0,84808.0,0.0506452]
[1744606976875,1.9582774,84809.0,84808.0,0.0496452]
[1744606977059,1.9582774,84809.0,84808.0,0.0506452]
[1744606977459,1.8181974,84809.0,84808.0,0.0506452]
[1744606977677,1.7695784,84809.0,84808.0,0.0506452]
[1744606978112,1.7685784,84809.0,84808.0,0.0997452]
[1744606978327,1.7685784,84809.0,84808.0,0.2884062]
[1744606978488,1.35408,84809.0,84808.0,0.2884062]
[1744606979408,1.35408,84809.0,84808.0,0.2874062]
[1744606979798,1.35508,84809.0,84808.0,0.2904062]
[1744606980813,0.001,84809.0,84808.0,0.2904062]
[1744606981014,0.001,84809.0,84808.0,0.41124774]
[1744606981339,0.14004,84821.0,84820.0,0.286534]
[1744606982047,5.964e-05,84832.0,84820.0,0.286534]
[1744606982048,5.964e-05,84832.0,84830.0,0.188612]
[1744606982195,0.5545384,84831.0,84830.0,0.188612]
[1744606982401,0.5545384,84831.0,84830.0,0.237412]
[1744606983005,0.5545384,84831.0,84830.0,0.286512]
[1744606983204,5.964e-05,84832.0,84830.0,0.286512]
[1744606983406,5.964e-05,84832.0,84831.0,0.0488]
[1744606984020,5.964e-05,84832.0,84831.0,0.0979]
[1744606985512,5.964e-05,84832.0,84831.0,0.10025736]
[1744606985737,5.964e-05,84832.0,84831.0,0.0979]
[1744606986312,5.964e-05,84832.0,84831.0,0.10025736]
[1744606986849,5.964e-05,84832.0,84831.0,0.10225736]
[1744606987377,5.964e-05,84832.0,84831.0,0.0999]
[1744606987580,5.964e-05,84832.0,84831.0,0.10225737]
[1744606988443,5.964e-05,84832.0,84831.0,0.22309891]
[1744606989455,5.964e-05,84832.0,84831.0,0.22109891]
[1744606989945,0.00105964,84832.0,84831.0,0.22509891]
[1744606990145,5.964e-05,84832.0,84831.0,0.23563976]
[1744606990469,0.00105964,84832.0,84831.0,0.23828239]
[1744606991256,0.00105964,84832.0,84831.0,0.24028239]
[1744606991460,0.00105964,84832.0,84831.0,0.2426393]
[1744606991645,0.00105964,84832.0,84831.0,0.24028239]
[1744606993795,0.00105964,84832.0,84831.0,0.24764698]
[1744606995508,0.00105964,84832.0,84831.0,0.24764733]
[1744606996710,0.00105964,84832.0,84831.0,0.24028239]
[1744606997293,0.00105964,84832.0,84831.0,0.1049]
[1744606999571,0.11321864,84842.0,84836.0,0.011787]
[1744606999775,0.11321864,84842.0,84836.0,0.01187396]
[1744606999776,0.011787,84839.0,84836.0,0.01187396]
[1744607000162,0.011787,84839.0,84836.0,8.696e-05]
[1744607000371,0.188594,84838.0,84836.0,8.696e-05]
[1744607000587,0.011787,84839.0,84836.0,8.696e-05]
[1744607000756,0.011787,84839.0,84836.0,0.00208696]
[1744607001137,0.011787,84839.0,84836.0,8.696e-05]
[1744607001588,0.011787,84839.0,84836.0,0.00208696]
[1744607002116,0.012787,84839.0,84836.0,0.00508696]
[1744607002341,0.188594,84838.0,84836.0,0.00508696]
[1744607002658,0.012787,84839.0,84836.0,0.00508696]
[1744607003296,0.011787,84839.0,84836.0,8.696e-05]
[1744607003518,0.001,84838.0,84836.0,0.00508696]
[1744607003900,0.011787,84839.0,84836.0,0.00208696]
[1744607004102,0.011787,84839.0,84836.0,8.696e-05]
[1744607004331,0.011787,84839.0,84836.0,0.00208696]
[1744607005158,0.012787,84839.0,84836.0,0.01687396]
[1744607005509,0.188594,84838.0,84836.0,0.00508696]
[1744607006299,0.188594,84838.0,84836.0,0.00308696]
[1744607006475,0.188594,84838.0,84836.0,8.696e-05]
[1744607006792,0.189594,84838.0,84836.0,0.00508696]
[1744607008363,0.001,84838.0,84836.0,0.00508696]
[1744607009193,0.001,84838.0,84837.0,0.188596]
[1744607010023,0.4144984,84843.0,84840.0,0.200374]
[1744607010234,0.4144984,84843.0,84841.0,0.188586]
[1744607010441,0.4144984,84843.0,84840.0,0.200374]
[1744607011597,0.4144984,84843.0,84840.0,0.011786]
[1744607011758,0.4262844,84843.0,84839.0,0.011787]
[1744607012105,0.4262844,84843.0,84840.0,0.002]
[1744607012403,0.4262844,84843.0,84840.0,0.014786]
[1744607012759,0.4262844,84843.0,84839.0,0.011787]
[1744607012960,0.4262844,84843.0,84839.0,0.013787]
[1744607013162,0.4262844,84843.0,84839.0,0.012787]
[1744607013538,0.4262844,84843.0,84840.0,0.011786]
[1744607013966,0.13992,84842.0,84840.0,0.011786]
[1744607014443,0.13992,84842.0,84841.0,0.188588]
[1744607015908,0.13992,84842.0,84841.0,0.190588]
[1744607016311,0.13992,84842.0,84841.0,0.191588]
[1744607017307,0.13992,84842.0,84841.0,0.19895345]
[1744607019923,0.13992,84842.0,84841.0,0.191588]
[1744607023027,0.13992,84842.0,84841.0,0.19895345]
[1744607027485,0.13992,84842.0,84841.0,0.01036545]
[1744607029221,0.13992,84842.0,84841.0,0.003]
[1744607047939,0.13992,84842.0,84841.0,0.01036549]
[1744607052148,0.200369,84844.0,84841.0,0.003]
[1744607052347,0.13988,84843.0,84841.0,0.003]
[1744607053012,0.13988,84843.0,84841.0,0.002]
[1744607053214,0.13988,84843.0,84839.0,0.011787]
[1744607053386,0.13988,84843.0,84841.0,0.001]